fUSD/lending_fUSD_20260611
["ID","MTS","AMOUNT","RATE_DAILY","PERIOD"]
[424786206,1781161846000,-539.51,0.00014999,2]
[424786218,1781161846000,-2171.56,0.00014999,2]
[424786219,1781161846000,-2171.56,0.00014999,2]
[424786208,1781161846000,-539.51,0.00014999,2]
[424786210,1781161846000,-539.51,0.00014999,2]
[424786213,1781161846000,-539.51,0.00014999,2]
[424786211,1781161846000,-539.51,0.00014999,2]
[424786209,1781161846000,-539.51,0.00014999,2]
[424786214,1781161846000,-539.57889603,0.00014999,2]
[424786212,1781161846000,-539.51,0.00014999,2]
[424786215,1781161846000,-2171.56,0.00014999,2]
[424786217,1781161846000,-2171.56,0.00014999,2]
[424786216,1781161846000,-2171.56,0.00014999,2]
[424786220,1781161846000,-2171.56,0.00014999,2]
[424786222,1781161846000,-909.22,0.00014999,2]
[424786226,1781161846000,-909.22,0.00014999,2]
[424786225,1781161846000,-909.22,0.00014999,2]
[424786224,1781161846000,-909.22,0.00014999,2]
[424786223,1781161846000,-909.22,0.00014999,2]
[424786221,1781161846000,-2171.7958614,0.00014999,2]
[424786161,1781161846000,-87135.38377846,0.000149,2]
[424786197,1781161846000,-254.58489995,0.00014986,2]
[424786204,1781161846000,-539.51,0.00014999,2]
[424786200,1781161846000,-115968.91106027,0.00014989,2]
[424786194,1781161846000,-248.12091067,0.00014986,2]
[424786165,1781161846000,-20184.37238519,0.000149,2]
[424786196,1781161846000,-150.75812701,0.00014986,2]
[424786163,1781161846000,-2000.0,0.000149,2]
[424786170,1781161846000,-150.0,0.00014901,2]
[424786169,1781161846000,-150.0,0.00014901,2]
[424786175,1781161846000,-150.0,0.00014915,2]
[424786178,1781161846000,-150.0,0.0001493,2]
[424786181,1781161846000,-150.0,0.00014943,2]
[424786174,1781161846000,-150.0,0.00014915,2]
[424786172,1781161846000,-291.64660163,0.00014908,2]
[424786180,1781161846000,-254.58489995,0.00014941,2]
[424786176,1781161846000,-254.58489995,0.00014926,2]
[424786168,1781161846000,-1472.57104462,0.000149,2]
[424786183,1781161846000,-150.0,0.00014951,2]
[424786173,1781161846000,-254.58489995,0.00014911,2]
[424786195,1781161846000,-208.1114482,0.00014986,2]
[424786190,1781161846000,-285.87761885,0.00014986,2]
[424786185,1781161846000,-254.58489995,0.00014956,2]
[424786191,1781161846000,-210.0975545,0.00014986,2]
[424786192,1781161846000,-276.09958385,0.00014986,2]
[424786186,1781161846000,-150.0,0.00014958,2]
[424786188,1781161846000,-254.58489995,0.00014971,2]
[424786187,1781161846000,-168.90688265,0.00014969,2]
[424786193,1781161846000,-225.43309031,0.00014986,2]
[424786182,1781161846000,-150.0,0.00014951,2]
[424786189,1781161846000,-257.36274763,0.00014986,2]
[424786242,1781161847000,-500.0,0.00014999,2]
[424786236,1781161847000,-660.37,0.00014999,2]
[424786238,1781161847000,-660.37,0.00014999,2]
[424786239,1781161847000,-660.37,0.00014999,2]
[424786237,1781161847000,-660.37,0.00014999,2]
[424786240,1781161847000,-660.37,0.00014999,2]
[424786235,1781161847000,-500.0,0.00014999,21]
[424786228,1781161847000,-909.381062,0.00014999,2]
[424786234,1781161847000,-660.37,0.00014999,2]
[424786231,1781161847000,-500.0,0.00014999,21]
[424786233,1781161847000,-500.0,0.00014999,21]
[424786230,1781161847000,-500.0,0.00014999,20]
[424786227,1781161847000,-909.22,0.00014999,2]
[424786229,1781161847000,-500.0,0.00014999,19]
[424786241,1781161847000,-660.37338711,0.00014999,2]
[424786232,1781161847000,-500.0,0.00014999,21]
[424786243,1781161847000,-500.0,0.00014999,2]
[424786253,1781161847000,-300.0,0.00014999,2]
[424786247,1781161847000,-500.0,0.00014999,2]
[424786261,1781161847000,-898.00642169,0.00015,2]
[424786256,1781161847000,-666.0,0.00014999,2]
[424786257,1781161847000,-6533.64446171,0.00015,2]
[424786245,1781161847000,-500.0,0.00014999,2]
[424786259,1781161847000,-12970712.77566273,0.00015,2]
[424786260,1781161847000,-430669.79878565,0.00015,2]
[424786255,1781161847000,-300.0,0.00014999,2]
[424786254,1781161847000,-666.0,0.00014999,2]
[424786258,1781161847000,-400.0,0.00015,2]
[424786252,1781161847000,-300.0,0.00014999,2]
[424786249,1781161847000,-399.31780529,0.00014999,2]
[424786248,1781161847000,-500.0,0.00014999,2]
[424786250,1781161847000,-300.0,0.00014999,2]
[424786244,1781161847000,-500.0,0.00014999,2]
[424786251,1781161847000,-300.0,0.00014999,2]
[424786246,1781161847000,-500.0,0.00014999,2]
[424786263,1781161848000,-751.66775334,0.00015,2]
[424786265,1781161848000,-3100.0,0.00015,2]
[424786264,1781161848000,-1687.50015032,0.00015,2]
[424786262,1781161848000,-13877.69187824,0.00015,2]
[424786270,1781161850000,-53864.07698312,0.00011202,2]
[424786268,1781161850000,-2154.46033151,0.0001,2]
[424786269,1781161850000,-527.24989889,0.00011202,2]
[424786266,1781161850000,-1411.79630058,0.00011202,2]
[424786267,1781161850000,-634.28,0.0001,2]
[424786271,1781161850000,-602023.03986155,0.00015,2]
[424786278,1781161850000,-238657.89504133,0.00015,2]
[424786274,1781161850000,-10390.86770645,0.00015,2]
[424786273,1781161850000,-354.70923108,0.00015,2]
[424786276,1781161850000,-500.0,0.00015,2]
[424786275,1781161850000,-319.60394241,0.00015,2]
[424786277,1781161850000,-9610.24574091,0.00015,2]
[424786272,1781161850000,-271.29434102,0.00015,2]
[424786283,1781162719000,-329.4939,8.657e-05,2]
[424786284,1781162720000,-150.0,8.874e-05,2]
[424786287,1781162720000,-500.0,9.523e-05,2]
[424786285,1781162720000,-250.0,9.523e-05,2]
[424786289,1781162720000,-190.83726697,0.0001,2]
[424786288,1781162720000,-150.0,9.999e-05,2]
[424786290,1781162720000,-4437.45488948,0.0001,2]
[424786286,1781162720000,-283.81394355,9.523e-05,2]
[424786303,1781163032000,-21859.37165299,9.9e-05,2]
[424786302,1781163032000,-820.0809008,9.9e-05,2]
[424786301,1781163032000,-1222.84,9.9e-05,2]
[424786299,1781163032000,-96863.65049437,9.9e-05,2]
[424786300,1781163032000,-14949.03001031,9.9e-05,2]
[424786298,1781163032000,-11995.81015658,9.9e-05,2]
[424786296,1781163032000,-502.50976596,9.2e-05,2]
[424786297,1781163032000,-573.06007746,9.2e-05,2]
[424786310,1781163038000,-335.64854266,0.0001,2]
[424786305,1781163038000,-172.48258495,9.9e-05,2]
[424786306,1781163038000,-78.15037571,9.999e-05,2]
[424786309,1781163038000,-4720.05842272,0.0001,2]
[424786308,1781163038000,-150.0,9.999e-05,2]
[424786311,1781163038000,-370.46073927,0.0001,2]
[424786312,1781163038000,-815.79999999,0.0001,2]
[424786313,1781163038000,-1229.82,0.0001,2]
[424786307,1781163038000,-221.84962429,9.999e-05,2]
[424786553,1781163040000,-4999.99,0.00010986,2]
[424786564,1781163040000,-230.44745054,0.00011061,2]
[424786549,1781163040000,-22571.1,0.00010986,2]
[424786566,1781163040000,-4000.0,0.00011118,2]
[424786551,1781163040000,-7665.35,0.00010986,2]
[424786556,1781163040000,-9999.99,0.00010986,2]
[424786570,1781163040000,-270.38,0.00011205,2]
[424786572,1781163040000,-160.92,0.00011238,2]
[424786568,1781163040000,-150.0,0.00011173,2]
[424786574,1781163040000,-150.0,0.00011265,2]
[424786558,1781163040000,-215.95576085,0.00010988,2]
[424786562,1781163040000,-255.0,0.00010999,2]
[424786545,1781163040000,-299.99,0.00010847,2]
[424786543,1781163040000,-4000.0,0.00010847,2]
[424786547,1781163040000,-150.99,0.00010986,2]
[424786536,1781163040000,-165.43,0.00010568,2]
[424786541,1781163040000,-311.39,0.00010833,2]
[424786539,1781163040000,-426.25,0.00010739,2]
[424786535,1781163040000,-1852.42,0.00010566,2]
[424786526,1781163040000,-950.27827561,0.0001,2]
[424786532,1781163040000,-3302.04,0.00010395,2]
[424786530,1781163040000,-250.0,0.0001012,2]
[424786528,1781163040000,-47478.19807995,0.0001,2]
[424786513,1781163040000,-3707.705,0.0001,2]
[424786576,1781163040000,-4000.0,0.0001139,2]
[424786560,1781163040000,-420.0,0.00010999,2]
[424786578,1781163040000,-500.0,0.00011397,2]
[424786602,1781163040000,-500.0,0.00011685,2]
[424786582,1781163040000,-166.66,0.00011454,2]
[424786580,1781163040000,-1322.99,0.0001141,2]
[424786635,1781163040000,-500.0,0.00011685,2]
[424786633,1781163040000,-500.0,0.00011685,2]
[424786626,1781163040000,-500.0,0.00011685,2]
[424786630,1781163040000,-500.0,0.00011685,2]
[424786628,1781163040000,-500.0,0.00011685,2]
[424786622,1781163040000,-500.0,0.00011685,2]
[424786621,1781163040000,-500.0,0.00011685,2]
[424786620,1781163040000,-500.0,0.00011685,2]
[424786617,1781163040000,-500.0,0.00011685,2]
[424786613,1781163040000,-500.0,0.00011685,2]
[424786615,1781163040000,-500.0,0.00011685,2]
[424786611,1781163040000,-500.0,0.00011685,2]
[424786624,1781163040000,-500.0,0.00011685,2]
[424786608,1781163040000,-500.0,0.00011685,2]
[424786607,1781163040000,-500.0,0.00011685,2]
[424786588,1781163040000,-1145.7364696,0.00011586,2]
[424786586,1781163040000,-250.0,0.000115,2]
[424786598,1781163040000,-181.4529841,0.00011628,2]
[424786592,1781163040000,-190.83726697,0.00011586,2]
[424786590,1781163040000,-33481.87390959,0.00011586,2]
[424786594,1781163040000,-2500.0,0.00011586,2]
[424786596,1781163040000,-800.0,0.000116,4]
[424786600,1781163040000,-4000.0,0.00011661,2]
[424786604,1781163040000,-500.0,0.00011685,2]
[424786637,1781163040000,-500.0,0.00011685,2]
[424786584,1781163040000,-400.0,0.000115,4]
[424786650,1781163041000,-500.0,0.00011685,2]
[424786669,1781163041000,-500.0,0.00011685,2]
[424786656,1781163041000,-500.0,0.00011685,2]
[424786659,1781163041000,-500.0,0.00011685,2]
[424786654,1781163041000,-500.0,0.00011685,2]
[424786674,1781163041000,-500.0,0.00011685,2]
[424786645,1781163041000,-500.0,0.00011685,2]
[424786652,1781163041000,-500.0,0.00011685,2]
[424786660,1781163041000,-500.0,0.00011685,2]
[424786643,1781163041000,-500.0,0.00011685,2]
[424786648,1781163041000,-500.0,0.00011685,2]
[424786641,1781163041000,-500.0,0.00011685,2]
[424786639,1781163041000,-500.0,0.00011685,2]
[424786671,1781163041000,-500.0,0.00011685,2]
[424786665,1781163041000,-500.0,0.00011685,2]
[424786667,1781163041000,-500.0,0.00011685,2]
[424786663,1781163041000,-500.0,0.00011685,2]
[424786680,1781163041000,-500.0,0.00011685,2]
[424786675,1781163041000,-500.0,0.00011685,2]
[424786714,1781163041000,-822.28747636,0.00011686,2]
[424786706,1781163041000,-2000.0,0.00011685,2]
[424786708,1781163041000,-250.0,0.00011685,2]
[424786703,1781163041000,-500.0,0.00011685,2]
[424786701,1781163041000,-500.0,0.00011685,2]
[424786710,1781163041000,-550056.10358293,0.00011686,2]
[424786699,1781163041000,-500.0,0.00011685,2]
[424786697,1781163041000,-500.0,0.00011685,2]
[424786695,1781163041000,-500.0,0.00011685,2]
[424786693,1781163041000,-531.46803518,0.00011685,2]
[424786690,1781163041000,-500.0,0.00011685,2]
[424786684,1781163041000,-500.0,0.00011685,2]
[424786682,1781163041000,-500.0,0.00011685,2]
[424786677,1781163041000,-500.0,0.00011685,2]
[424786686,1781163041000,-500.0,0.00011685,2]
[424786688,1781163041000,-500.0,0.00011685,2]
[424786950,1781163043000,-1265.0403738,0.00011686,2]
[424786951,1781163043000,-464.504,0.00011686,2]
[424786915,1781163043000,-6443.9844399,0.00011686,2]
[424786954,1781163043000,-729.11141954,0.00011686,2]
[424786953,1781163043000,-3797.21018937,0.00011686,2]
[424786952,1781163043000,-331.86,0.00011686,2]
[424786991,1781163046000,-462.31375,0.00011686,2]
[424786989,1781163046000,-2468.0,0.00011686,2]
[424786990,1781163046000,-6894.61953864,0.00011686,2]
[424786988,1781163046000,-607.99845993,0.00011686,2]
[424786995,1781163047000,-739.45547386,0.00011686,2]
[424786994,1781163047000,-3965.27281942,0.00011686,2]
[424787022,1781164232000,-5508.08586486,9.699e-05,2]
[424787021,1781164232000,-371.91413514,9.691e-05,2]
[424787024,1781164232000,-1292.2457146,9.699e-05,2]
[424787034,1781164232000,-186.1829241,9.699e-05,2]
[424787023,1781164232000,-544.02,9.699e-05,2]
[424787026,1781164232000,-25379.69742054,9.699e-05,2]
[424787031,1781164232000,-500.0,9.699e-05,2]
[424787027,1781164232000,-500.0,9.699e-05,2]
[424787032,1781164232000,-376.88779611,9.699e-05,2]
[424787029,1781164232000,-500.0,9.699e-05,2]
[424787030,1781164232000,-500.0,9.699e-05,2]
[424787035,1781164232000,-500.0,9.699e-05,2]
[424787018,1781164232000,-643.80193498,9.632e-05,2]
[424787028,1781164232000,-500.0,9.699e-05,2]
[424787017,1781164232000,-400.0,9.6e-05,3]
[424787004,1781164232000,-351.02307539,8.998e-05,2]
[424787016,1781164232000,-340.88144334,9.597e-05,2]
[424787019,1781164232000,-2658.23806502,9.632e-05,2]
[424787015,1781164232000,-587.52301361,9.597e-05,2]
[424787013,1781164232000,-411.35999135,9.156e-05,2]
[424787014,1781164232000,-1252.32554305,9.597e-05,2]
[424787012,1781164232000,-315.42809693,9.156e-05,2]
[424787011,1781164232000,-1273.21191172,9.156e-05,2]
[424787008,1781164232000,-150.0,9.077e-05,2]
[424787010,1781164232000,-69.38808828,9.087e-05,2]
[424787036,1781164232000,-500.0,9.699e-05,2]
[424787009,1781164232000,-1204.08191172,9.087e-05,2]
[424787005,1781164232000,-491.0360497,8.998e-05,2]
[424787006,1781164232000,-357.88151182,8.998e-05,2]
[424787003,1781164232000,-1241.56,8.998e-05,2]
[424787020,1781164232000,-128.08586486,9.691e-05,2]
[424787038,1781164232000,-500.0,9.699e-05,2]
[424787007,1781164232000,-11006.98936309,8.998e-05,2]
[424787040,1781164232000,-500.0,9.699e-05,2]
[424787041,1781164232000,-500.0,9.699e-05,2]
[424787069,1781164232000,-500.0,9.699e-05,2]
[424787067,1781164232000,-500.0,9.699e-05,2]
[424787068,1781164232000,-500.0,9.699e-05,2]
[424787065,1781164232000,-500.0,9.699e-05,2]
[424787057,1781164232000,-500.0,9.699e-05,2]
[424787048,1781164232000,-500.0,9.699e-05,2]
[424787053,1781164232000,-500.0,9.699e-05,2]
[424787061,1781164232000,-500.0,9.699e-05,2]
[424787049,1781164232000,-500.0,9.699e-05,2]
[424787055,1781164232000,-500.0,9.699e-05,2]
[424787054,1781164232000,-500.0,9.699e-05,2]
[424787052,1781164232000,-500.0,9.699e-05,2]
[424787066,1781164232000,-500.0,9.699e-05,2]
[424787051,1781164232000,-500.0,9.699e-05,2]
[424787070,1781164232000,-500.0,9.699e-05,2]
[424787063,1781164232000,-500.0,9.699e-05,2]
[424787064,1781164232000,-500.0,9.699e-05,2]
[424787039,1781164232000,-500.0,9.699e-05,2]
[424787037,1781164232000,-500.0,9.699e-05,2]
[424787045,1781164232000,-500.0,9.699e-05,2]
[424787043,1781164232000,-500.0,9.699e-05,2]
[424787044,1781164232000,-500.0,9.699e-05,2]
[424787046,1781164232000,-500.0,9.699e-05,2]
[424787042,1781164232000,-511.86193989,9.699e-05,2]
[424787062,1781164232000,-500.0,9.699e-05,2]
[424787050,1781164232000,-500.0,9.699e-05,2]
[424787058,1781164232000,-500.0,9.699e-05,2]
[424787056,1781164232000,-500.0,9.699e-05,2]
[424787060,1781164232000,-500.0,9.699e-05,2]
[424787047,1781164232000,-500.0,9.699e-05,2]
[424787059,1781164232000,-500.0,9.699e-05,2]
[424787085,1781164233000,-500.0,9.699e-05,2]
[424787087,1781164233000,-500.0,9.699e-05,2]
[424787086,1781164233000,-500.0,9.699e-05,2]
[424787090,1781164233000,-500.0,9.699e-05,2]
[424787089,1781164233000,-500.0,9.699e-05,2]
[424787093,1781164233000,-500.0,9.699e-05,2]
[424787092,1781164233000,-500.0,9.699e-05,2]
[424787099,1781164233000,-500.0,9.699e-05,2]
[424787094,1781164233000,-500.0,9.699e-05,2]
[424787088,1781164233000,-500.0,9.699e-05,2]
[424787095,1781164233000,-500.0,9.699e-05,2]
[424787091,1781164233000,-500.0,9.699e-05,2]
[424787082,1781164233000,-500.0,9.699e-05,2]
[424787077,1781164233000,-500.0,9.699e-05,2]
[424787083,1781164233000,-500.0,9.699e-05,2]
[424787081,1781164233000,-500.0,9.699e-05,2]
[424787079,1781164233000,-500.0,9.699e-05,2]
[424787080,1781164233000,-500.0,9.699e-05,2]
[424787078,1781164233000,-210.92407268,9.699e-05,2]
[424787076,1781164233000,-500.0,9.699e-05,2]
[424787075,1781164233000,-500.0,9.699e-05,2]
[424787073,1781164233000,-500.0,9.699e-05,2]
[424787074,1781164233000,-500.0,9.699e-05,2]
[424787071,1781164233000,-500.0,9.699e-05,2]
[424787072,1781164233000,-500.0,9.699e-05,2]
[424787096,1781164233000,-500.0,9.699e-05,2]
[424787084,1781164233000,-500.0,9.699e-05,2]
[424787098,1781164233000,-500.0,9.699e-05,2]
[424787119,1781164233000,-150.99,9.699e-05,2]
[424787101,1781164233000,-500.0,9.699e-05,2]
[424787097,1781164233000,-500.0,9.699e-05,2]
[424787125,1781164233000,-174637.5822254,9.7e-05,2]
[424787126,1781164233000,-2282.29507063,9.7e-05,2]
[424787127,1781164233000,-468.75595281,9.7e-05,2]
[424787124,1781164233000,-264588.51812637,9.7e-05,2]
[424787123,1781164233000,-800.0,9.7e-05,3]
[424787122,1781164233000,-7665.35,9.699e-05,2]
[424787121,1781164233000,-299.99,9.699e-05,2]
[424787120,1781164233000,-4999.99,9.699e-05,2]
[424787128,1781164233000,-2265.83164586,9.7e-05,2]
[424787115,1781164233000,-500.0,9.699e-05,2]
[424787114,1781164233000,-414.4560375,9.699e-05,2]
[424787117,1781164233000,-9609.81166301,9.699e-05,2]
[424787118,1781164233000,-390.17833699,9.699e-05,2]
[424787113,1781164233000,-500.0,9.699e-05,2]
[424787100,1781164233000,-500.0,9.699e-05,2]
[424787103,1781164233000,-500.0,9.699e-05,2]
[424787104,1781164233000,-500.0,9.699e-05,2]
[424787102,1781164233000,-500.0,9.699e-05,2]
[424787105,1781164233000,-644.56037502,9.699e-05,2]
[424787116,1781164233000,-500.0,9.699e-05,2]
[424787106,1781164233000,-500.0,9.699e-05,2]
[424787107,1781164233000,-500.0,9.699e-05,2]
[424787109,1781164233000,-500.0,9.699e-05,2]
[424787110,1781164233000,-500.0,9.699e-05,2]
[424787111,1781164233000,-500.0,9.699e-05,2]
[424787112,1781164233000,-500.0,9.699e-05,2]
[424787108,1781164233000,-500.0,9.699e-05,2]
[424787133,1781164238000,-4730.75089867,9.7e-05,2]
[424787131,1781164238000,-2208.74522651,9.7e-05,2]
[424787132,1781164238000,-4258.93837701,9.7e-05,2]
[424787134,1781164238000,-780.23250482,9.7e-05,2]
[424787137,1781164238000,-17050.97981303,9.7e-05,2]
[424787136,1781164238000,-3274.04263831,9.7e-05,2]
[424787138,1781164238000,-1466.25518156,9.7e-05,2]
[424787139,1781164238000,-516.70824417,9.7e-05,2]
[424787140,1781164238000,-545.85460464,9.7e-05,2]
[424787135,1781164238000,-4143.25905905,9.7e-05,2]
[424787182,1781164240000,-627.39910709,9.7e-05,2]
[424787183,1781164240000,-1068.32136773,9.7e-05,2]
[424787181,1781164240000,-43131.14140928,9.7e-05,2]
[424787180,1781164240000,-735102.96353971,9.7e-05,2]
[424787179,1781164240000,-20008.12896508,9.7e-05,2]
[424787177,1781164240000,-17430.354052,9.7e-05,2]
[424787178,1781164240000,-332.11298935,9.7e-05,2]
[424787176,1781164240000,-11573.99686272,9.7e-05,2]
[424787175,1781164240000,-1687.49605649,9.7e-05,2]
[424787207,1781164243000,-1067.41889332,9.7e-05,2]
[424787210,1781164246000,-1551.22433577,9.7e-05,2]
[424787211,1781164246000,-785.48129672,9.7e-05,2]
[424787212,1781164246000,-181597.2115559,9.7e-05,2]
[424787213,1781164246000,-22571.1,9.7e-05,2]
[424787215,1781164246000,-151.84,9.797e-05,2]
[424787217,1781164246000,-150.0,9.798e-05,2]
[424787218,1781164246000,-57961.4566,9.799e-05,2]
[424787214,1781164246000,-160.0,9.735e-05,2]
[424787216,1781164246000,-300.0,9.798e-05,2]
[424787221,1781164246000,-181.4529841,9.85e-05,2]
[424787220,1781164246000,-2500.0,9.8e-05,2]
[424787209,1781164246000,-818.0,9.7e-05,2]
[424787222,1781164246000,-162.13261455,9.87e-05,2]
[424787219,1781164246000,-1300.0,9.8e-05,3]
[424787226,1781164246000,-150.0,9.899e-05,2]
[424787225,1781164246000,-1852.42,9.873e-05,2]
[424787235,1781164246000,-4000.0,0.00010027,2]
[424787236,1781164246000,-230.44745054,0.00010056,2]
[424787234,1781164246000,-190.83726697,0.0001,2]
[424787233,1781164246000,-2200.0,0.0001,3]
[424787231,1781164246000,-47478.19807995,0.0001,2]
[424787232,1781164246000,-163.65,0.0001,2]
[424787223,1781164246000,-162.13261455,9.87e-05,2]
[424787230,1781164246000,-311.39,9.975e-05,2]
[424787224,1781164246000,-162.13261455,9.87e-05,2]
[424787229,1781164246000,-215.95576085,9.935e-05,2]
[424787227,1781164246000,-1700.0,9.9e-05,3]
[424787228,1781164246000,-270.38,9.928e-05,2]
[424787277,1781164247000,-33481.87390955,0.00011099,2]
[424787267,1781164247000,-151.84,0.00011022,2]
[424787268,1781164247000,-4000.0,0.0001103,2]
[424787269,1781164247000,-166.66,0.00011068,2]
[424787271,1781164247000,-33481.87390959,0.00011099,2]
[424787272,1781164247000,-33481.87390955,0.00011099,2]
[424787270,1781164247000,-500.0,0.00011098,2]
[424787273,1781164247000,-33481.87390955,0.00011099,2]
[424787275,1781164247000,-33481.87390955,0.00011099,2]
[424787274,1781164247000,-33481.87390955,0.00011099,2]
[424787280,1781164247000,-33481.87390955,0.00011247,2]
[424787281,1781164247000,-166.66,0.00011288,2]
[424787279,1781164247000,-166.66,0.00011178,2]
[424787285,1781164247000,-33481.87390955,0.00011452,2]
[424787284,1781164247000,-2000.0,0.00011445,2]
[424787282,1781164247000,-1273.47,0.00011358,2]
[424787283,1781164247000,-166.66,0.00011397,2]
[424787266,1781164247000,-150.0,0.00010959,2]
[424787276,1781164247000,-33481.87390955,0.00011099,2]
[424787287,1781164247000,-500.0,0.0001155,2]
[424787286,1781164247000,-166.66,0.00011507,2]
[424787289,1781164247000,-500.0,0.00011551,2]
[424787288,1781164247000,-500.0,0.00011551,2]
[424787291,1781164247000,-500.0,0.00011551,2]
[424787278,1781164247000,-33481.87390955,0.00011099,2]
[424787264,1781164247000,-150.0,0.00010959,2]
[424787261,1781164247000,-500.0,0.00010958,2]
[424787262,1781164247000,-500.0,0.00010958,2]
[424787238,1781164247000,-4000.0,0.00010278,2]
[424787237,1781164247000,-1273.47,0.00010223,2]
[424787240,1781164247000,-151.84,0.00010409,2]
[424787241,1781164247000,-4000.0,0.00010529,2]
[424787244,1781164247000,-255.0,0.00010778,2]
[424787242,1781164247000,-250.0,0.00010557,2]
[424787243,1781164247000,-171.0,0.00010778,2]
[424787245,1781164247000,-4000.0,0.00010779,2]
[424787247,1781164247000,-500.0,0.00010958,2]
[424787246,1781164247000,-160.92,0.0001085,2]
[424787248,1781164247000,-500.0,0.00010958,2]
[424787250,1781164247000,-500.0,0.00010958,2]
[424787249,1781164247000,-500.0,0.00010958,2]
[424787251,1781164247000,-500.0,0.00010958,2]
[424787252,1781164247000,-500.0,0.00010958,2]
[424787253,1781164247000,-500.0,0.00010958,2]
[424787256,1781164247000,-500.0,0.00010958,2]
[424787257,1781164247000,-500.0,0.00010958,2]
[424787255,1781164247000,-500.0,0.00010958,2]
[424787258,1781164247000,-500.0,0.00010958,2]
[424787254,1781164247000,-500.0,0.00010958,2]
[424787259,1781164247000,-500.0,0.00010958,2]
[424787239,1781164247000,-2000.0,0.00010301,2]
[424787260,1781164247000,-500.0,0.00010958,2]
[424787263,1781164247000,-500.0,0.00010958,2]
[424787265,1781164247000,-166.66,0.00010959,2]
[424787290,1781164247000,-500.0,0.00011551,2]
[424787293,1781164247000,-500.0,0.00011551,2]
[424787297,1781164247000,-500.0,0.00011551,2]
[424787326,1781164247000,-500.0,0.00011551,2]
[424787322,1781164247000,-500.0,0.00011551,2]
[424787327,1781164247000,-500.0,0.00011551,2]
[424787321,1781164247000,-500.0,0.00011551,2]
[424787328,1781164247000,-500.0,0.00011551,2]
[424787330,1781164247000,-500.0,0.00011551,2]
[424787331,1781164247000,-500.0,0.00011551,2]
[424787335,1781164247000,-500.0,0.00011551,2]
[424787339,1781164247000,-500.0,0.00011551,2]
[424787333,1781164247000,-500.0,0.00011551,2]
[424787336,1781164247000,-500.0,0.00011551,2]
[424787323,1781164247000,-500.0,0.00011551,2]
[424787332,1781164247000,-500.0,0.00011551,2]
[424787337,1781164247000,-500.0,0.00011551,2]
[424787334,1781164247000,-500.0,0.00011551,2]
[424787340,1781164247000,-500.0,0.00011551,2]
[424787338,1781164247000,-500.0,0.00011551,2]
[424787342,1781164247000,-500.0,0.00011551,2]
[424787347,1781164247000,-196.84876651,0.00011551,2]
[424787345,1781164247000,-458.26217561,0.00011551,2]
[424787344,1781164247000,-500.0,0.00011551,2]
[424787343,1781164247000,-500.0,0.00011551,2]
[424787346,1781164247000,-500.0,0.00011551,2]
[424787292,1781164247000,-500.0,0.00011551,2]
[424787341,1781164247000,-500.0,0.00011551,2]
[424787324,1781164247000,-500.0,0.00011551,2]
[424787329,1781164247000,-500.0,0.00011551,2]
[424787320,1781164247000,-500.0,0.00011551,2]
[424787325,1781164247000,-500.0,0.00011551,2]
[424787294,1781164247000,-500.0,0.00011551,2]
[424787296,1781164247000,-500.0,0.00011551,2]
[424787299,1781164247000,-500.0,0.00011551,2]
[424787298,1781164247000,-500.0,0.00011551,2]
[424787301,1781164247000,-500.0,0.00011551,2]
[424787300,1781164247000,-500.0,0.00011551,2]
[424787302,1781164247000,-500.0,0.00011551,2]
[424787304,1781164247000,-500.0,0.00011551,2]
[424787308,1781164247000,-500.0,0.00011551,2]
[424787306,1781164247000,-500.0,0.00011551,2]
[424787305,1781164247000,-500.0,0.00011551,2]